fUST/lending_fUST_20250803
["ID","MTS","AMOUNT","RATE_DAILY","PERIOD"]
[377002396,1754199042875,-460.0,0.00027945,10]
[377002397,1754199042885,-460.0,0.00027945,10]
[377002398,1754199042895,-510.7,0.00027945,10]
[377002399,1754199042906,-460.0,0.00027945,10]
[377002401,1754199042916,-460.0,0.00027945,10]
[377002402,1754199042926,-460.0,0.00027945,10]
[377002403,1754199042935,-460.0,0.00027945,10]
[377002404,1754199042945,-460.0,0.00027945,10]
[377002405,1754199042954,-510.7,0.00027945,10]
[377002406,1754199042964,-460.0,0.00027945,10]
[377002408,1754199043073,-460.0,0.00027945,10]
[377002409,1754199043083,-460.0,0.00027945,10]
[377002410,1754199043092,-460.0,0.00027945,10]
[377002411,1754199043104,-510.7,0.00027945,10]
[377002412,1754199043117,-460.0,0.00027945,10]
[377002413,1754199043127,-460.0,0.00027945,10]
[377002414,1754199043137,-460.0,0.00027945,10]
[377002416,1754199043146,-460.0,0.00027945,10]
[377002418,1754199043155,-510.7,0.00027945,10]
[377002420,1754199043165,-510.7,0.00027945,10]
[377002421,1754199043174,-460.0,0.00027945,10]
[377002423,1754199043185,-460.0,0.00027945,10]
[377002425,1754199043194,-510.7,0.00027945,10]
[377002427,1754199043203,-460.0,0.00027945,10]
[377002429,1754199043213,-510.7,0.00027945,10]
[377002431,1754199043223,-481.97205858,0.00027945,10]
[377002433,1754199043232,-460.0,0.00027945,10]
[377002435,1754199043242,-510.7,0.00027945,10]
[377002436,1754199043251,-510.7,0.00027945,10]
[377002437,1754199043261,-460.0,0.00027945,10]
[377002438,1754199043270,-462.2438062,0.00027945,10]
[377002440,1754199043279,-460.0,0.00027945,10]
[377002441,1754199043289,-460.0,0.00027945,10]
[377002442,1754199043299,-460.0,0.00027945,10]
[377002444,1754199043308,-460.0,0.00027945,10]
[377002446,1754199043318,-460.0,0.00027945,10]
[377002447,1754199043327,-460.0,0.00027945,10]
[377002448,1754199043337,-460.0,0.00027945,10]
[377002449,1754199043347,-460.0,0.00027945,10]
[377002450,1754199043356,-607.15402426,0.00027945,10]
[377002451,1754199043366,-460.0,0.00027945,10]
[377002452,1754199043376,-462.50269968,0.00027945,10]
[377002453,1754199043386,-460.0,0.00027945,10]
[377002454,1754199043395,-460.0,0.00027945,10]
[377002455,1754199043405,-460.0,0.00027945,10]
[377002456,1754199043414,-469.12405939,0.00027945,10]
[377002457,1754199043423,-460.0,0.00027945,10]
[377002458,1754199043433,-460.0,0.00027945,10]
[377002459,1754199043442,-460.0,0.00027945,10]
[377002460,1754199043451,-460.0,0.00027945,10]
[377002461,1754199043461,-450.8376376,0.00027945,10]
[377002463,1754199043471,-460.0,0.00027945,10]
[377002465,1754199043481,-460.0,0.00027945,10]
[377002466,1754199043490,-463.48434978,0.00027945,10]
[377002467,1754199043499,-460.0,0.00027945,10]
[377002468,1754199043509,-460.0,0.00027945,10]
[377002469,1754199043519,-550.78,0.00027945,10]
[377002470,1754199043528,-511.54,0.00027945,10]
[377002471,1754199043538,-550.78,0.00027945,10]
[377002472,1754199043547,-550.78,0.00027945,10]
[377002473,1754199043556,-463.45380442,0.00027945,10]
[377002474,1754199043567,-550.78,0.00027945,10]
[377002475,1754199043577,-511.54,0.00027945,10]
[377002476,1754199043587,-550.78,0.00027945,10]
[377002477,1754199043596,-511.54,0.00027945,10]
[377002478,1754199043605,-550.78,0.00027945,10]
[377002479,1754199043615,-460.0,0.00027945,10]
[377002480,1754199043625,-550.78,0.00027945,10]
[377002481,1754199043634,-550.78,0.00027945,10]
[377002482,1754199043644,-511.54,0.00027945,10]
[377002483,1754199043653,-550.78,0.00027945,10]
[377002484,1754199043662,-460.0,0.00027945,10]
[377002485,1754199043671,-500.0,0.00027945,2]
[377002486,1754199043683,-500.0,0.00027945,2]
[377002487,1754199043693,-550.78,0.00027945,10]
[377002488,1754199043703,-460.0,0.00027945,10]
[377002489,1754199043715,-500.0,0.00027945,2]
[377002490,1754199043728,-550.78,0.00027945,10]
[377002491,1754199043738,-511.54,0.00027945,10]
[377002492,1754199043748,-500.0,0.00027945,2]
[377002493,1754199043757,-460.0,0.00027945,10]
[377002494,1754199043766,-500.0,0.00027945,2]
[377002495,1754199043776,-550.78,0.00027945,10]
[377002496,1754199043785,-460.0,0.00027945,10]
[377002497,1754199043795,-500.0,0.00027945,2]
[377002498,1754199043804,-392.4442963,0.00027945,10]
[377002499,1754199043887,-119.0957037,0.00027945,10]
[377002500,1754199043897,-550.78,0.00027945,10]
[377002501,1754199043906,-476.24885557,0.00027945,10]
[377002502,1754199043915,-581.53,0.00027945,2]
[377002503,1754199043924,-550.78,0.00027945,10]
[377002504,1754199043933,-511.54,0.00027945,10]
[377002505,1754199043942,-550.78,0.00027945,10]
[377002506,1754199043951,-511.54,0.00027945,10]
[377002507,1754199043960,-550.78,0.00027945,10]
[377002508,1754199043969,-550.78,0.00027945,10]
[377002509,1754199043978,-527.05565498,0.00027945,10]
[377002510,1754199043998,-257.3189741,0.0002629,7]
[377002511,1754199044062,-414.0910259,0.0002629,7]
[377002512,1754199044072,-671.41,0.00026961,7]
[377002513,1754199044081,-671.41,0.00027631,7]
[377002514,1754199044091,-40.76434502,0.00027945,10]
[377002515,1754199044101,-567.82,0.00027945,10]
[377002516,1754199044115,-567.82,0.00027945,10]
[377002517,1754199044124,-460.0,0.00027945,10]
[377002518,1754199044134,-460.0,0.00027972,10]
[377002519,1754199044143,-510.7,0.00027972,10]
[377002520,1754199044153,-500.0,0.00027973,5]
[377002521,1754199044163,-500.0,0.00027973,5]
[377002522,1754199044172,-200.0,0.00027973,5]
[377002523,1754199044183,-500.0,0.00027973,5]
[377002524,1754199044192,-858.11285005,0.00027994,2]
[377002525,1754199044201,-410.41,0.00028,2]
[377002526,1754199044210,-1049.31767996,0.00028004,2]
[377002527,1754199044219,-510.7,0.00028011,10]
[377002528,1754199044229,-836.5,0.00028012,10]
[377002529,1754199044239,-500.0,0.00028012,10]
[377002530,1754199044248,-460.0,0.00028012,10]
[377002531,1754199044258,-550.78,0.00028012,10]
[377002532,1754199044267,-1491.62,0.00028013,10]
[377002533,1754199044276,-510.23,0.00028013,10]
[377002534,1754199044285,-460.0,0.00028013,10]
[377002535,1754199044295,-258.78991248,0.00028013,10]
[377002536,1754199044307,-201.21008752,0.00028013,10]
[377002537,1754199044316,-511.54,0.00028013,10]
[377002538,1754199044327,-550.78,0.00028013,10]
[377002539,1754199044336,-150.0,0.00028014,2]
[377002540,1754199044346,-1491.62,0.00028014,10]
[377002541,1754199044355,-1491.62,0.00028014,10]
[377002542,1754199044365,-1491.62,0.00028014,10]
[377002543,1754199044374,-1491.62,0.00028014,10]
[377002544,1754199044384,-274.95253864,0.00028014,10]
[377002545,1754199044403,-1216.66746136,0.00028014,10]
[377002546,1754199044415,-460.0,0.00028014,10]
[377002547,1754199044424,-460.0,0.00028014,10]
[377002548,1754199044434,-460.0,0.00028014,10]
[377002549,1754199044443,-511.54,0.00028014,10]
[377002550,1754199044453,-511.54,0.00028014,10]
[377002551,1754199044462,-567.82,0.00028014,10]
[377002552,1754199044472,-511.54,0.00028014,10]
[377002553,1754199044481,-567.82,0.00028014,10]
[377002554,1754199044491,-511.54,0.00028014,10]
[377002555,1754199044500,-567.82,0.00028014,10]
[377002556,1754199044509,-511.54,0.00028014,10]
[377002557,1754199044519,-567.82,0.00028014,10]
[377002558,1754199044528,-567.82,0.00028014,10]
[377002559,1754199044538,-353.8,0.0002802,7]
[377002560,1754199044548,-199.61432816,0.00028022,7]
[377002561,1754199044558,-151.0,0.00028022,7]
[377002562,1754199044567,-198.0,0.00028022,7]
[377002563,1754199044576,-198.0,0.00028022,7]
[377002564,1754199044585,-151.0,0.00028022,7]
[377002565,1754199044594,-268.2975092,0.00028022,7]
[377002566,1754199044603,-836.5,0.00028026,10]
[377002567,1754199044613,-510.23,0.00028026,10]
[377002568,1754199044623,-500.0,0.00028026,10]
[377002569,1754199044632,-354.5843221,0.00028026,2]
[377002570,1754199044641,-772.4802425,0.00028031,2]
[377002571,1754199044650,-460.0,0.00028041,2]
[377002572,1754199044660,-2976.69010545,0.00028043,2]
[377002573,1754199044669,-858.11285005,0.00028043,2]
[377002574,1754199044678,-4553.81720957,0.00028043,2]
[377002575,1754199044688,-460.0,0.0002805,10]
[377002576,1754199044697,-510.7,0.00028091,10]
[377002577,1754199044706,-403.38,0.00028099,10]
[377002578,1754199044715,-550.78,0.00028099,10]
[377002579,1754199044724,-550.78,0.00028099,10]
[377002580,1754199044733,-550.78,0.00028099,10]
[377002581,1754199044742,-550.78,0.00028099,10]
[377002582,1754199044752,-550.98,0.00028099,10]
[377002583,1754199044762,-646.0,0.000281,2]
[377002584,1754199044771,-1049.31767996,0.00028102,2]
[377002585,1754199044780,-460.0,0.00028108,10]
[377002586,1754199044790,-836.5,0.00028108,10]
[377002587,1754199044799,-510.7,0.00028108,10]
[377002588,1754199044808,-527.12062288,0.00028108,2]
[377002589,1754199044817,-12649.34751639,0.00028108,2]
[377002590,1754199044827,-841.87402298,0.00028108,2]
[377002591,1754199044836,-510.23,0.00028109,10]
[377002592,1754199044845,-551.23,0.00028112,10]
[377002593,1754199044854,-1491.62,0.00028112,10]
[377002594,1754199044863,-1491.62,0.00028112,10]
[377002595,1754199044873,-836.5,0.00028112,10]
[377002596,1754199044883,-510.23,0.00028112,10]
[377002597,1754199044892,-511.54,0.00028112,10]
[377002598,1754199044901,-511.54,0.00028112,10]
[377002599,1754199044911,-1491.62,0.00028113,10]
[377002600,1754199044920,-1491.62,0.00028113,10]
[377002601,1754199044929,-1491.62,0.00028113,10]
[377002602,1754199044938,-1491.62,0.00028113,10]
[377002603,1754199044947,-1491.62,0.00028113,10]
[377002604,1754199044956,-1491.62,0.00028113,10]
[377002605,1754199044965,-521.90477352,0.00028113,10]
[377002606,1754199045014,-969.71522648,0.00028113,10]
[377002607,1754199045024,-1491.6222228,0.00028113,10]
[377002608,1754199045033,-510.7,0.00028113,10]
[377002609,1754199045043,-510.7,0.00028113,10]
[377002610,1754199045052,-510.7,0.00028113,10]
[377002611,1754199045061,-510.7,0.00028113,10]
[377002612,1754199045071,-510.7,0.00028113,10]
[377002613,1754199045080,-510.7,0.00028113,10]
[377002614,1754199045089,-510.92169084,0.00028113,10]
[377002615,1754199045099,-567.82,0.00028113,10]
[377002616,1754199045112,-511.54,0.00028113,10]
[377002617,1754199045121,-567.82,0.00028113,10]
[377002618,1754199045130,-511.54,0.00028113,10]
[377002619,1754199045139,-567.82,0.00028113,10]
[377002620,1754199045148,-511.54,0.00028113,10]
[377002621,1754199045158,-567.82,0.00028113,10]
[377002622,1754199045268,-511.54,0.00028113,10]
[377002623,1754199045279,-511.54,0.00028113,10]
[377002624,1754199045289,-567.82,0.00028113,10]
[377002625,1754199045298,-511.54,0.00028113,10]
[377002626,1754199045308,-567.82,0.00028113,10]
[377002627,1754199045317,-567.82,0.00028113,10]
[377002628,1754199045327,-511.54,0.00028113,10]
[377002629,1754199045336,-567.82,0.00028113,10]
[377002630,1754199045346,-511.75507124,0.00028113,10]
[377002631,1754199045355,-567.82,0.00028113,10]
[377002632,1754199045364,-108.382153,0.00028113,10]
[377002633,1754199045376,-459.437847,0.00028113,10]
[377002634,1754199045385,-567.82,0.00028113,10]
[377002635,1754199045395,-567.82,0.00028113,10]
[377002636,1754199045405,-2098.63535992,0.00028116,2]
[377002637,1754199045415,-510.23,0.00028119,10]
[377002638,1754199045425,-845.01,0.00028123,10]
[377002639,1754199045435,-868.46,0.00028123,10]
[377002640,1754199045444,-460.0,0.00028123,10]
[377002641,1754199045454,-460.0,0.00028123,10]
[377002642,1754199045464,-460.0,0.00028123,10]
[377002643,1754199045474,-836.5,0.00028125,10]
[377002644,1754199045485,-836.5,0.00028125,10]
[377002645,1754199045495,-836.5,0.00028125,10]
[377002646,1754199045506,-836.5,0.00028125,10]
[377002647,1754199045516,-836.5,0.00028125,10]
[377002648,1754199045526,-836.5,0.00028125,10]
[377002649,1754199045536,-836.54,0.00028125,10]
[377002650,1754199045547,-792.72,0.00028125,10]
[377002651,1754199045557,-460.0,0.00028125,10]
[377002652,1754199045568,-460.0,0.00028125,10]
[377002653,1754199045580,-154.435106,0.00028126,7]
[377002654,1754199045591,-1335.97528279,0.00028126,2]
[377002655,1754199045602,-500.0,0.00028126,5]
[377002656,1754199045612,-157.202396,0.00028126,10]
[377002657,1754199045622,-845.01,0.00028126,10]
[377002658,1754199045633,-845.01,0.00028126,10]
[377002659,1754199045643,-845.01,0.00028126,10]
[377002660,1754199045652,-845.01,0.00028126,10]
[377002661,1754199045663,-845.01,0.00028126,10]
[377002662,1754199045672,-845.01,0.00028126,10]
[377002663,1754199045682,-845.01,0.00028126,10]
[377002664,1754199045691,-845.01,0.00028126,10]
[377002665,1754199045701,-845.01,0.00028126,10]
[377002666,1754199045710,-845.01,0.00028126,10]
[377002667,1754199045719,-845.01,0.00028126,10]
[377002668,1754199045729,-845.01,0.00028126,10]
[377002669,1754199045738,-845.01,0.00028126,10]
[377002670,1754199045748,-845.01,0.00028126,10]
[377002671,1754199045757,-845.01,0.00028126,10]
[377002672,1754199045766,-845.01,0.00028126,10]
[377002673,1754199045776,-845.01,0.00028126,10]
[377002674,1754199045786,-845.03,0.00028126,10]
[377002675,1754199045798,-353.8,0.00028126,15]
[377002676,1754199045820,-510.23,0.00028126,10]
[377002678,1754199045835,-868.46,0.00028126,10]
[377002679,1754199045844,-868.46,0.00028126,10]
[377002680,1754199045853,-868.46,0.00028126,10]
[377002681,1754199045862,-868.46,0.00028126,10]
[377002682,1754199045872,-792.72,0.00028126,10]
[377002683,1754199045882,-868.46,0.00028126,10]
[377002684,1754199045897,-868.46,0.00028126,10]
[377002686,1754199045906,-868.46,0.00028126,10]
[377002687,1754199045915,-868.46,0.00028126,10]
[377002689,1754199045924,-868.46,0.00028126,10]
[377002690,1754199045934,-868.46,0.00028126,10]
[377002691,1754199045943,-792.72,0.00028126,10]
[377002692,1754199045952,-868.46,0.00028126,10]
[377002693,1754199045961,-868.46,0.00028126,10]
[377002694,1754199045970,-868.46,0.00028126,10]
[377002695,1754199045979,-868.46,0.00028126,10]
[377002696,1754199045988,-792.72,0.00028126,10]
[377002697,1754199045997,-868.46,0.00028126,10]
[377002699,1754199046007,-868.46,0.00028126,10]
[377002701,1754199046016,-868.46,0.00028126,10]
[377002702,1754199046025,-868.50541046,0.00028126,10]
[377002703,1754199046034,-792.72,0.00028126,10]
[377002704,1754199046043,-792.72,0.00028126,10]
[377002705,1754199046052,-792.72,0.00028126,10]
[377002706,1754199046062,-792.72,0.00028126,10]
[377002707,1754199046071,-792.72,0.00028126,10]
[377002708,1754199046080,-792.72,0.00028126,10]
[377002710,1754199046089,-792.72,0.00028126,10]
[377002711,1754199046099,-792.72,0.00028126,10]
[377002712,1754199046110,-792.72,0.00028126,10]
[377002713,1754199046119,-792.72,0.00028126,10]
[377002714,1754199046128,-792.72,0.00028126,10]
[377002715,1754199046138,-792.72,0.00028126,10]
[377002716,1754199046148,-792.72,0.00028126,10]
[377002717,1754199046157,-792.72,0.00028126,10]
[377002718,1754199046167,-792.72,0.00028126,10]
[377002719,1754199046176,-213.32955123,0.00028126,10]
[377002720,1754199046190,-264.33555658,0.00028126,10]
[377002721,1754199046201,-315.05489219,0.00028126,10]
[377002723,1754199046210,-792.72,0.00028126,10]
[377002725,1754199046220,-792.9,0.00028126,10]
[377002726,1754199046229,-460.0,0.00028126,10]
[377002727,1754199046238,-189.31618961,0.00028126,10]
[377002728,1754199046251,-270.68381039,0.00028126,10]
[377002729,1754199046260,-460.0,0.00028126,10]
[377002730,1754199046269,-460.0,0.00028126,10]
[377002731,1754199046278,-460.0,0.00028126,10]
[377002732,1754199046288,-460.0,0.00028126,10]
[377002733,1754199046297,-460.0,0.00028126,10]
[377002734,1754199046306,-524.5,0.00028126,10]
[377002735,1754199046316,-460.0,0.00028126,10]
[377002736,1754199046325,-378.60579151,0.00028126,10]
[377002737,1754199046340,-81.39420849,0.00028126,10]
[377002738,1754199046350,-460.0,0.00028126,10]
[377002739,1754199046359,-460.0,0.00028126,10]
[377002740,1754199046368,-460.0,0.00028126,10]
[377002741,1754199046377,-460.0,0.00028126,10]
[377002742,1754199046387,-460.0,0.00028126,10]
[377002743,1754199046397,-460.0,0.00028126,10]
[377002744,1754199046406,-460.0,0.00028126,10]
[377002745,1754199046416,-460.0,0.00028126,10]
[377002746,1754199046425,-460.0,0.00028126,10]
[377002747,1754199046434,-460.0,0.00028126,10]
[377002748,1754199046443,-460.0,0.00028126,10]
[377002749,1754199046453,-281.92,0.00028126,10]
[377002750,1754199046462,-460.0,0.00028126,10]
[377002751,1754199046471,-400.09,0.00028126,10]
[377002752,1754199046481,-460.0,0.00028126,10]
[377002753,1754199046490,-490.17382855,0.00028126,2]
[377002754,1754199046500,-314.34725308,0.00028126,2]
[377002755,1754199046509,-152.151596,0.00028127,7]
[377002756,1754199046519,-151.0,0.00028127,7]
[377002757,1754199046528,-151.0,0.00028127,7]
[377002758,1754199046538,-151.0,0.00028127,7]
[377002759,1754199046547,-263.63375,0.00028127,7]
[377002760,1754199046557,-151.0,0.00028127,7]
[377002761,1754199046566,-151.0,0.00028127,7]
[377002762,1754199046575,-151.0,0.00028127,7]
[377002763,1754199046585,-151.0,0.00028127,7]
[377002764,1754199046594,-151.0,0.00028127,7]
[377002765,1754199046603,-151.0,0.00028127,7]
[377002766,1754199046612,-151.0,0.00028127,7]
[377002767,1754199046622,-151.0,0.00028127,7]
[377002768,1754199046631,-151.0,0.00028127,7]
[377002769,1754199046640,-151.0,0.00028127,7]
[377002770,1754199046649,-151.0,0.00028127,7]
[377002771,1754199046658,-151.0,0.00028127,7]
[377002772,1754199046668,-527.12062288,0.00028127,7]
[377002773,1754199046677,-841.87402298,0.00028127,7]
[377002774,1754199046687,-12649.34751639,0.00028127,7]
[377002775,1754199046698,-158.796369,0.0002814,7]
[377002776,1754199046708,-151.0,0.0002814,7]
[377002777,1754199046718,-151.0,0.0002814,7]
[377002778,1754199046727,-151.0,0.0002814,7]
[377002779,1754199046737,-151.0,0.0002814,7]
[377002780,1754199046746,-151.0,0.0002814,7]
[377002781,1754199046755,-151.0,0.0002814,7]
[377002782,1754199046764,-151.0,0.0002814,7]
[377002783,1754199046774,-188.914356,0.0002814,7]
[377002784,1754199046783,-188.914356,0.0002814,7]
[377002785,1754199046793,-188.914356,0.0002814,7]
[377002786,1754199046802,-188.914356,0.0002814,7]
[377002787,1754199046814,-151.0,0.0002814,7]
[377002788,1754199046823,-151.0,0.0002814,7]
[377002789,1754199046833,-151.0,0.0002814,7]
[377002790,1754199046842,-151.0,0.0002814,7]
[377002791,1754199046852,-280.404748,0.0002814,7]
[377002792,1754199046862,-192.966733,0.0002814,7]
[377002793,1754199046872,-192.966733,0.0002814,7]
[377002794,1754199046882,-192.966733,0.0002814,7]
[377002795,1754199046891,-192.966733,0.0002814,7]
[377002796,1754199046902,-510.23,0.0002814,10]
[377002797,1754199046913,-510.23,0.0002814,10]
[377002798,1754199046923,-222.42387092,0.0002814,10]
[377002799,1754199046936,-287.80612908,0.0002814,10]
[377002800,1754199046949,-510.23,0.0002814,10]
[377002801,1754199046959,-510.23,0.0002814,10]
[377002802,1754199046969,-510.23,0.0002814,10]
[377002803,1754199046978,-510.45,0.0002814,10]
[377002804,1754199046988,-151.0,0.0002814,7]
[377002805,1754199046997,-151.0,0.00028142,7]
[377002806,1754199047007,-151.0,0.00028142,7]
[377002807,1754199047018,-153.358615,0.00028142,7]
[377002808,1754199047027,-151.0,0.00028142,7]
[377002809,1754199047036,-151.0,0.00028142,7]
[377002810,1754199047046,-151.0,0.00028142,7]
[377002811,1754199047055,-214.001118,0.00028142,7]
[377002812,1754199047065,-151.0,0.00028142,7]
[377002813,1754199047074,-151.0,0.00028142,7]
[377002814,1754199047084,-151.0,0.00028142,7]
[377002815,1754199047094,-151.0,0.00028143,7]
[377002816,1754199047104,-151.884947,0.00028143,7]
[377002817,1754199047118,-151.0,0.00028143,7]
[377002818,1754199047127,-177.744927,0.00028143,7]
[377002819,1754199047137,-151.0,0.00028143,7]
[377002820,1754199047147,-2686.83720923,0.00028143,2]
[377002821,1754199047156,-6502.08380106,0.00028143,2]
[377002822,1754199047167,-1610.36689294,0.00028143,2]
[377002823,1754199047201,-567.82,0.00028113,10]
[377002824,1754199047210,-567.82,0.00028113,10]
[377002825,1754199047220,-567.82,0.00028113,10]
[377002826,1754199047229,-567.83,0.00028113,10]
[377002827,1754199047239,-16079.33637209,0.00028143,2]
[377002828,1754199047248,-583.39246627,0.00028143,2]
[377002829,1754199047258,-188.48064218,0.00028143,2]
[377002830,1754199047267,-1391.41217329,0.00028143,2]
[377002831,1754199047277,-2196.08834617,0.00028143,2]
[377002832,1754199047289,-3676.03889683,0.00028143,2]
[377002833,1754199047299,-10644.5023001,0.00028143,2]
[377002834,1754199047308,-648.76032297,0.00028143,2]
[377002835,1754199047409,-2920.0,0.00028143,2]
[377002836,1754199047418,-383.44395759,0.00028143,2]
[377002837,1754199047428,-200.70498776,0.00028143,2]
[377002838,1754199047438,-3135.60136361,0.00028143,2]
[377002839,1754199047448,-600.02940215,0.00028143,5]
[377002840,1754199047458,-349.89629564,0.00028143,7]
[377002841,1754199047468,-1589.0,0.00028143,3]
[377002842,1754199047478,-11062.97015385,0.00028143,7]
[377002843,1754199047488,-1780.69159197,0.00028143,3]
[377002844,1754199047497,-439.4844821,0.00028143,2]
[377002845,1754199047510,-746.63578212,0.00028143,2]
[377002846,1754199047520,-901.06620201,0.00028143,2]
[377002847,1754199047529,-4844.17358997,0.00028143,2]
[377002848,1754199047541,-6346.02680037,0.00028143,2]
[377002849,1754199047552,-19763.31806471,0.00028143,2]
[377002850,1754199201895,166.154876,0.00013699,2]
[377002851,1754199202102,166.154876,0.00021918,2]
[377002852,1754199229079,162.0,0.00022,2]
[377002856,1754199681694,2235.30312029,0.00023061,2]
[377002858,1754199941121,-407.24,0.00023623,2]
[377002859,1754199941144,-407.24,0.00024277,2]
[377002860,1754199941168,-500.0,0.00024383,2]
[377002861,1754199941190,-208.029015,0.00024956,2]
[377002862,1754199941210,-262.76603546,0.00025,7]
[377002863,1754200007098,-160.0,0.00024383,2]
[377002864,1754200007124,-19.7480605,0.00025401,7]
[377002865,1754200051084,-287.55,0.00025,7]
[377002866,1754200051106,-147.7719395,0.00025401,7]
[377002867,1754200051127,-169.1,0.00025411,7]
[377002868,1754200051147,-287.55,0.00025468,7]
[377002869,1754200051168,-167.52,0.00025501,7]
[377002870,1754200051189,-169.1,0.00025511,7]
[377002871,1754200051210,-167.52,0.00025601,7]
[377002872,1754200051230,-169.1,0.00025611,7]
[377002873,1754200051251,-28.74583396,0.00025701,7]
[377002905,1754200232653,-150.0,0.00023401,2]
[377002907,1754200232664,-214.39309849,0.00024383,2]
[377002913,1754200232765,-285.60690151,0.00024383,2]
[377002915,1754200232775,-870.37826365,0.00025144,2]
[377002964,1754200238529,-129.62173635,0.00025144,2]
[377002965,1754200238540,-157.27,0.00025411,7]
[377002966,1754200238549,-157.27,0.00025511,7]
[377002967,1754200238559,-223.65,0.00025701,7]
[377002968,1754200238569,-138.80416604,0.00025701,7]
[377002969,1754200238579,-169.1,0.00025711,7]
[377002970,1754200238589,-3.32395931,0.00025735,2]
[377002971,1754200238601,-296.67604069,0.00025735,2]
[377002972,1754200238611,-3198.95547124,0.00025736,2]
[377002973,1754200238623,-2490.09604591,0.00025736,2]
[377002974,1754200238635,-812.33175654,0.00025736,2]
[377002975,1754200238647,-632.60534507,0.00025736,2]
[377002976,1754200238778,-1051.33495113,0.00025736,2]
[377002987,1754200240672,-1714.67643011,0.00025736,2]
[377002988,1754200240683,-3791.8352148,0.00025761,2]
[377002989,1754200240693,-169.1,0.00025811,7]
[377002990,1754200240702,-223.65,0.00026092,7]
[377002991,1754200240712,-233.59,0.00026267,2]
[377002992,1754200240722,-223.65,0.00026482,7]
[377002993,1754200240731,-500.0,0.00026575,2]
[377002994,1754200240741,-179.821,0.00026652,14]
[377002995,1754200240750,-160.0,0.00026738,2]
[377002996,1754200240761,-223.65,0.00026873,7]
[377002998,1754200240771,-333.5,0.00026987,7]
[377003000,1754200240781,-200.0,0.00027022,15]
[377003001,1754200240790,-300.0,0.00027022,15]
[377003002,1754200240800,-333.5,0.00027092,7]
[377003003,1754200240810,-333.5,0.00027198,7]
[377003004,1754200240819,-163.53565274,0.00027298,2]
[377003005,1754200240829,-333.5,0.00027303,7]
[377003006,1754200240838,-223.65,0.00027397,7]
[377003007,1754200240848,-166.56085173,0.00027397,2]
[377003008,1754200240858,-333.5,0.00027408,7]
[377003009,1754200240867,-333.5,0.00027513,7]
[377003010,1754200240877,-333.5,0.00027618,7]
[377003011,1754200240887,-223.65,0.00027654,7]
[377003012,1754200240896,-333.5,0.00027723,7]
[377003013,1754200240905,-333.5,0.00027828,7]
[377003014,1754200240915,-420.0,0.00027859,2]
[377003015,1754200240925,-333.5,0.00027933,7]
[377003016,1754200240938,-1573.97651994,0.00027935,2]
[377003017,1754200240948,-420.75,0.00027935,3]
[377003018,1754200240957,-210.38,0.00027935,3]
[377003019,1754200240966,-631.15,0.00027935,3]
[377003020,1754200240976,-2427.82,0.00027944,2]
[377003021,1754200240986,-175.79744278,0.00027945,10]
[377003022,1754200240995,-460.0,0.00027945,10]